bitfinex/quotes_BTCUSD_20251110
["timestamp","ask_amount","ask_price","bid_price","bid_amount"]
[1762740300058,0.19373342,105680.0,105670.0,0.21589102]
[1762740300260,0.19373342,105680.0,105670.0,0.02641081]
[1762740300461,0.19373342,105680.0,105670.0,0.21567928]
[1762740301021,0.19373342,105680.0,105670.0,0.02641081]
[1762740301185,0.19373342,105680.0,105670.0,0.21567928]
[1762740301412,0.19373342,105680.0,105670.0,0.02641081]
[1762740302392,0.33467202,105680.0,105670.0,0.02641081]
[1762740302629,0.31148572,105680.0,105670.0,0.02641081]
[1762740302840,0.32888998,105680.0,105670.0,0.02641081]
[1762740303020,0.97128205,105680.0,105670.0,0.02641081]
[1762740303208,0.96728205,105680.0,105670.0,0.00141081]
[1762740303591,0.96681203,105680.0,105670.0,0.00641081]
[1762740303905,0.64788982,105680.0,105670.0,0.00641081]
[1762740304492,0.65088982,105680.0,105670.0,0.01641081]
[1762740304859,0.64788982,105680.0,105670.0,0.00641081]
[1762740305280,0.64888982,105680.0,105670.0,0.01041081]
[1762740306505,0.64889194,105680.0,105670.0,0.01041081]
[1762740308559,0.64889194,105680.0,105670.0,0.00541081]
[1762740309859,0.66089194,105680.0,105670.0,0.00541081]
[1762740310688,0.6604198,105680.0,105670.0,0.00541081]
[1762740310903,0.66089194,105680.0,105670.0,0.00541081]
[1762740313690,0.34188696,105680.0,105670.0,0.19467928]
[1762740313924,0.53113752,105680.0,105670.0,0.19467928]
[1762740314106,0.53113752,105680.0,105670.0,0.00541081]
[1762740315105,0.54313752,105680.0,105670.0,0.00541081]
[1762740315343,0.55851752,105680.0,105670.0,0.00541081]
[1762740315658,0.34188696,105680.0,105670.0,0.19467928]
[1762740315856,0.01888696,105680.0,105670.0,0.65660386]
[1762740316108,0.01888696,105680.0,105670.0,0.65639212]
[1762740316109,0.0189795,105680.0,105670.0,0.65639212]
[1762740316548,0.0189795,105680.0,105670.0,0.70725112]
[1762740317350,0.0179795,105680.0,105670.0,0.70184031]
[1762740317793,0.0209795,105680.0,105670.0,0.72784031]
[1762740318552,0.0209795,105680.0,105670.0,0.30960942]
[1762740318752,0.0209795,105680.0,105670.0,0.37081757]
[1762740318981,0.0209795,105680.0,105670.0,0.32733562]
[1762740319574,0.0209795,105680.0,105670.0,0.74556651]
[1762740320060,0.0209795,105680.0,105670.0,0.32733562]
[1762740320669,0.0209795,105680.0,105670.0,0.74556651]
[1762740320873,0.0209795,105680.0,105670.0,0.8400986]
[1762740321391,0.00348286,105680.0,105670.0,0.8400986]
[1762740322234,0.00348286,105680.0,105670.0,0.9869986]
[1762740323665,0.00348286,105680.0,105670.0,1.02101313]
[1762740324225,0.00348286,105680.0,105670.0,0.92648104]
[1762740324983,0.00348286,105680.0,105670.0,0.79196724]
[1762740325668,0.00348286,105680.0,105670.0,0.64506724]
[1762740325869,0.52165673,105710.0,105690.0,0.47294975]
[1762740326083,0.18921475,105700.0,105690.0,0.25648735]
[1762740326273,0.52165673,105710.0,105700.0,0.18921475]
[1762740326489,0.53913818,105710.0,105700.0,0.18921475]
[1762740326701,0.54047608,105710.0,105690.0,0.3176955]
[1762740326869,0.18921475,105700.0,105690.0,0.60141259]
[1762740327032,0.01748145,105700.0,105690.0,0.60141259]
[1762740328000,0.2066962,105700.0,105690.0,0.3176955]
[1762740328146,0.01948145,105700.0,105690.0,0.55624932]
[1762740328799,0.2086962,105700.0,105690.0,0.55624932]
[1762740329168,0.19121475,105700.0,105690.0,0.55624932]
[1762740329998,0.002,105700.0,105690.0,0.55624932]
[1762740330202,0.19121475,105700.0,105690.0,0.55624932]
[1762740330407,0.002,105700.0,105690.0,0.55624932]
[1762740330603,0.002,105700.0,105690.0,0.63519066]
[1762740330604,0.19121475,105700.0,105690.0,0.63519066]
[1762740330971,0.19121475,105700.0,105690.0,0.35147357]
[1762740331232,0.19121475,105700.0,105690.0,0.27253223]
[1762740332160,0.19231765,105700.0,105690.0,0.27253223]
[1762740332585,0.19231765,105700.0,105690.0,0.55624932]
[1762740333867,0.0031029,105700.0,105690.0,0.55624932]
[1762740337357,0.19231765,105700.0,105690.0,0.55624932]
[1762740337559,0.19231765,105700.0,105690.0,0.62834444]
[1762740338305,0.19231765,105700.0,105690.0,0.2834192]
[1762740338481,0.19231765,105700.0,105690.0,0.49504117]
[1762740338693,0.0031029,105700.0,105690.0,0.49504117]
[1762740338889,0.0031029,105700.0,105690.0,0.55624932]
[1762740339419,0.0031029,105700.0,105690.0,0.59025733]
[1762740339995,0.0031029,105700.0,105690.0,0.30654024]
[1762740340212,0.0031029,105700.0,105690.0,0.68835906]
[1762740340398,0.00047227,105740.0,105720.0,0.47289605]
[1762740340579,0.20664681,105740.0,105730.0,0.18916107]
[1762740340787,0.18986611,105730.0,105720.0,0.47289605]
[1762740341008,0.20736901,105730.0,105720.0,0.54617035]
[1762740341174,0.01820794,105730.0,105720.0,0.54617035]
[1762740341369,0.20736901,105730.0,105720.0,0.54617035]
[1762740341971,0.20736901,105730.0,105710.0,0.1986388]
[1762740342172,0.18916107,105730.0,105720.0,0.22318697]
[1762740342448,0.18916107,105730.0,105710.0,0.5672229]
[1762740342659,0.18916107,105730.0,105720.0,0.002]
[1762740342859,0.94295557,105730.0,105720.0,0.002]
[1762740343076,0.89516548,105730.0,105720.0,0.002]
[1762740343261,0.92895093,105730.0,105720.0,0.002]
[1762740343467,0.18921262,105710.0,105690.0,0.67572927]
[1762740343667,0.18921475,105700.0,105690.0,0.67582069]
[1762740343846,0.18921262,105710.0,105690.0,0.67582069]
[1762740344048,0.18921262,105710.0,105700.0,0.18921475]
[1762740344259,0.18921262,105710.0,105700.0,0.27571829]
[1762740344471,0.22398989,105720.0,105700.0,0.27571829]
[1762740344673,0.23529174,105720.0,105710.0,0.19019685]
[1762740344850,0.25064018,105720.0,105710.0,0.001]
[1762740345038,0.25110941,105720.0,105710.0,0.001]
[1762740345240,0.25110941,105720.0,105700.0,0.27571829]
[1762740345448,0.19019685,105710.0,105700.0,0.28271829]
[1762740345700,0.19019685,105710.0,105700.0,0.09350354]
[1762740345945,0.19019685,105710.0,105700.0,0.28271829]
[1762740346152,0.26014245,105720.0,105700.0,0.27571829]
[1762740346291,0.26414245,105720.0,105700.0,0.27571829]
[1762740346725,0.23929245,105720.0,105710.0,0.18919685]
[1762740347088,0.23882018,105720.0,105700.0,0.27571829]
[1762740347294,0.23928941,105720.0,105710.0,0.18919685]
[1762740347445,0.004,105720.0,105710.0,0.0126135]
[1762740347650,0.19317896,105720.0,105710.0,0.54692943]
[1762740347863,0.004,105720.0,105710.0,0.250405]
[1762740348117,0.19907324,105740.0,105720.0,0.18916413]
[1762740348431,0.52160106,105740.0,105730.0,0.18916107]
[1762740348549,0.323,105740.0,105730.0,0.18916107]
[1762740348756,0.23541876,105750.0,105730.0,0.25511509]
[1762740348967,0.18914318,105740.0,105730.0,0.25511509]
[1762740349198,0.00893997,105740.0,105730.0,0.25511509]
[1762740349401,0.19808315,105740.0,105730.0,0.18916107]
[1762740349642,0.00893997,105740.0,105730.0,0.18916107]
[1762740349843,0.23426543,105740.0,105730.0,0.18916107]
[1762740350054,0.04512225,105740.0,105730.0,0.18916107]
[1762740350457,0.23426543,105740.0,105730.0,0.18916107]
[1762740350653,0.00093997,105740.0,105730.0,0.60039054]
[1762740350832,0.19008315,105740.0,105730.0,0.60039054]
[1762740351037,0.21008315,105740.0,105730.0,0.31867345]
[1762740351221,0.21008315,105740.0,105730.0,0.25236922]
[1762740351629,0.02093997,105740.0,105730.0,0.25236922]
[1762740352424,0.02093997,105740.0,105730.0,0.53608631]
[1762740353043,0.02093997,105740.0,105730.0,0.57009432]
[1762740353471,0.02093997,105740.0,105730.0,0.62195332]
[1762740353680,0.00093997,105740.0,105730.0,0.71705505]
[1762740353934,0.00193997,105740.0,105730.0,0.72405505]
[1762740354111,0.00193997,105740.0,105730.0,0.73851477]
[1762740354328,0.00093997,105740.0,105730.0,0.73151477]
[1762740354738,0.00153997,105740.0,105730.0,0.74051477]
[1762740354942,0.00153997,105740.0,105730.0,0.73105505]
[1762740355319,0.00153997,105740.0,105730.0,0.68019605]
[1762740356121,0.19068315,105740.0,105730.0,0.36247095]
[1762740356587,0.19068315,105740.0,105730.0,0.014]
[1762740356764,0.21432604,105740.0,105730.0,0.014]
[1762740356930,0.19068315,105740.0,105730.0,0.014]
[1762740357336,0.20608316,105740.0,105730.0,0.014]
[1762740357591,0.19068315,105740.0,105730.0,0.014]
[1762740357730,0.19068315,105740.0,105730.0,0.03431641]
[1762740359162,0.20815899,105740.0,105730.0,0.03431641]
[1762740359619,0.20815899,105740.0,105730.0,0.014]
[1762740359826,0.28466127,105740.0,105730.0,0.014]
[1762740360049,0.28513363,105740.0,105730.0,0.014]
[1762740360465,0.28466127,105740.0,105730.0,0.014]
[1762740361551,0.26057127,105740.0,105730.0,0.014]
[1762740362094,0.28466127,105740.0,105730.0,0.014]
[1762740362496,0.28466127,105740.0,105730.0,0.009]
[1762740362911,0.28366127,105740.0,105730.0,0.003]
[1762740363242,0.2841335,105740.0,105730.0,0.003]
[1762740363456,0.28512819,105740.0,105730.0,0.01]
[1762740363672,0.66050558,105740.0,105730.0,0.01]
[1762740363889,0.6609725,105740.0,105730.0,0.01]
[1762740364116,0.60712819,105740.0,105730.0,0.003]
[1762740364326,0.60712819,105740.0,105730.0,0.002]
[1762740364327,0.54638899,105740.0,105730.0,0.002]
[1762740364533,0.64539819,105740.0,105730.0,0.002]
[1762740364745,0.66902127,105740.0,105730.0,0.002]
[1762740365167,0.6694905,105740.0,105730.0,0.002]
[1762740365822,0.6694905,105740.0,105730.0,0.19116107]
[1762740365823,0.03801581,105740.0,105730.0,0.19116107]
[1762740366028,0.30570127,105740.0,105730.0,0.22919502]
[1762740367526,0.30570127,105740.0,105730.0,0.19116107]
[1762740367734,0.30570127,105740.0,105730.0,0.002]
[1762740367949,0.3464905,105740.0,105730.0,0.002]
[1762740368935,0.3224005,105740.0,105730.0,0.002]
[1762740369368,0.32240363,105740.0,105730.0,0.002]
[1762740369579,0.3224005,105740.0,105730.0,0.002]
[1762740369740,0.32193127,105740.0,105730.0,0.002]
[1762740369944,0.3464905,105740.0,105730.0,0.002]
[1762740371111,0.34602127,105740.0,105730.0,0.002]
[1762740371309,0.66948819,105740.0,105730.0,0.002]
[1762740377267,0.98803986,105740.0,105730.0,0.002]
[1762740377654,0.98850678,105740.0,105730.0,0.002]
[1762740377849,0.98803986,105740.0,105730.0,0.002]
[1762740378052,0.99986909,105740.0,105730.0,0.002]
[1762740378644,0.99939986,105740.0,105730.0,0.002]
[1762740378869,0.99986678,105740.0,105730.0,0.002]
[1762740379550,0.99939986,105740.0,105730.0,0.002]
[1762740379718,0.99986678,105740.0,105730.0,0.002]
[1762740380420,1.43972886,105740.0,105730.0,0.002]
[1762740380615,0.18923266,105690.0,105680.0,0.59447663]
[1762740380814,0.20057475,105700.0,105680.0,0.54323593]
[1762740380987,0.21813379,105700.0,105690.0,0.31901859]
[1762740381201,0.21813379,105700.0,105690.0,0.00103273]
[1762740381412,0.21813379,105700.0,105690.0,0.32005132]
[1762740381867,0.21813379,105700.0,105690.0,0.50928398]
[1762740382087,0.21813379,105700.0,105690.0,0.00103273]
[1762740382285,0.21813379,105700.0,105690.0,0.00603273]
[1762740382976,0.21913379,105700.0,105690.0,0.01503273]
[1762740383305,0.20157475,105700.0,105690.0,0.01503273]
[1762740383920,0.20157475,105700.0,105690.0,0.33405132]
[1762740384347,0.20057475,105700.0,105690.0,0.50928398]
[1762740384556,0.19221475,105700.0,105690.0,0.59054736]
[1762740384755,0.02053572,105700.0,105690.0,0.59954736]
[1762740384958,0.003,105700.0,105690.0,0.59954736]
[1762740385515,0.19221475,105700.0,105690.0,0.59954736]
[1762740385634,0.003,105700.0,105690.0,0.59954736]
[1762740386057,0.003,105700.0,105690.0,0.91856595]
[1762740387926,0.003,105700.0,105690.0,0.28052877]
[1762740388144,0.003,105700.0,105690.0,0.90651072]
[1762740388906,0.003,105700.0,105690.0,0.94051873]
[1762740392541,0.003,105700.0,105690.0,0.99137773]
[1762740393176,0.003,105700.0,105690.0,0.94051873]
[1762740400390,0.19221475,105700.0,105690.0,0.30248155]
[1762740400591,0.25514875,105700.0,105690.0,0.52628398]
[1762740400824,0.19221475,105700.0,105690.0,0.52628398]
[1762740401246,0.19221475,105700.0,105690.0,0.33705132]
[1762740401370,0.19221475,105700.0,105690.0,0.52628398]
[1762740402389,0.003,105700.0,105690.0,0.52628398]
[1762740403025,0.003,105700.0,105690.0,0.87931058]
[1762740403254,0.003,105700.0,105690.0,0.56029199]
[1762740403452,0.003,105700.0,105690.0,0.97741231]
[1762740404438,0.003,105700.0,105690.0,1.02827131]
[1762740405102,0.003,105700.0,105690.0,0.39023413]
[1762740405337,0.003,105700.0,105690.0,0.89616157]
[1762740407809,0.003,105700.0,105690.0,0.84530257]
[1762740411061,0.003,105700.0,105690.0,0.91311457]
[1762740412494,0.21084988,105730.0,105710.0,0.18918112]
[1762740412710,0.28743347,105730.0,105720.0,0.31901859]
[1762740412907,0.28696218,105730.0,105720.0,0.31901859]
[1762740413142,0.30257218,105730.0,105720.0,0.31901859]
[1762740413465,0.18917896,105720.0,105710.0,0.54223029]
[1762740413681,0.20677054,105720.0,105710.0,0.54323029]
[1762740414269,0.27483983,105730.0,105710.0,0.54323029]
[1762740414470,0.18917896,105720.0,105710.0,0.54323029]
[1762740414894,0.26983752,105730.0,105710.0,0.54223029]
[1762740415100,0.31142719,105730.0,105720.0,0.002]
[1762740415308,0.27864573,105730.0,105720.0,0.51019755]
[1762740415503,0.29425573,105730.0,105720.0,0.002]
[1762740415683,0.18917896,105720.0,105710.0,0.35322282]
[1762740415898,0.21776432,105720.0,105710.0,0.35403344]
[1762740416113,0.20017896,105720.0,105710.0,0.35403344]
[1762740416431,0.20017896,105720.0,105710.0,0.54323029]
[1762740416973,0.21776374,105720.0,105710.0,0.54323029]
[1762740417754,0.20017896,105720.0,105710.0,0.54323029]
[1762740417947,0.20017896,105720.0,105710.0,0.59902022]
[1762740418537,0.21776135,105720.0,105710.0,0.59902022]
[1762740418945,0.20017896,105720.0,105710.0,0.59902022]
[1762740420481,0.20017896,105720.0,105710.0,0.03501485]
[1762740420698,0.21776109,105720.0,105710.0,0.54323029]
[1762740420844,0.20017896,105720.0,105710.0,0.54323029]
[1762740421047,0.20017896,105720.0,105710.0,0.35403344]
[1762740421488,0.21776242,105720.0,105710.0,0.35403344]
[1762740421899,0.62270329,105720.0,105710.0,0.001]
[1762740422206,0.98802329,105720.0,105710.0,0.001]
[1762740422358,0.66947711,105720.0,105710.0,0.001]
[1762740422782,0.9884957,105720.0,105710.0,0.001]
[1762740423347,0.98849565,105720.0,105710.0,0.001]
[1762740423549,1.01689814,105720.0,105710.0,0.001]
[1762740423991,1.01642685,105720.0,105710.0,0.001]
[1762740424594,1.33544544,105720.0,105710.0,0.001]
[1762740424818,1.33591785,105720.0,105710.0,0.001]
[1762740425357,0.51219685,105710.0,105700.0,0.00079757]
[1762740425567,0.89901131,105710.0,105700.0,0.00079757]
[1762740426427,0.58699272,105710.0,105700.0,0.00179757]
[1762740426582,0.9055389,105710.0,105700.0,0.00179757]
[1762740426927,0.58699272,105710.0,105700.0,0.00179757]
[1762740431117,0.66686027,105710.0,105700.0,0.00179757]
[1762740431325,0.58699272,105710.0,105700.0,0.00179757]
[1762740433535,0.58697871,105710.0,105700.0,0.00179757]
[1762740437814,0.90644365,105710.0,105700.0,0.00179757]
[1762740438285,0.93485167,105710.0,105700.0,0.00179757]
[1762740438580,0.93485167,105710.0,105660.0,0.48250325]
[1762740438581,0.54845075,105670.0,105660.0,0.08503712]
[1762740438743,0.90145582,105670.0,105660.0,9.142e-05]
[1762740438942,0.92426582,105670.0,105660.0,9.142e-05]
[1762740439112,0.65806603,105670.0,105660.0,9.142e-05]
[1762740439444,0.61770075,105670.0,105660.0,9.142e-05]
[1762740439606,0.64051075,105670.0,105660.0,9.142e-05]
[1762740440240,0.92426582,105670.0,105660.0,9.142e-05]
[1762740440657,0.940738,105670.0,105660.0,0.00209142]
[1762740440997,0.65698293,105670.0,105660.0,0.00209142]
[1762740441205,0.65898293,105670.0,105660.0,0.00209142]
[1762740442007,0.942738,105670.0,105660.0,0.00209142]
[1762740444335,0.942738,105670.0,105660.0,0.00303218]
[1762740445292,0.94226582,105670.0,105660.0,0.00303218]
[1762740445493,0.94273818,105670.0,105660.0,0.00303218]
[1762740447278,0.65898311,105670.0,105660.0,0.00303218]
[1762740448698,0.68740122,105670.0,105660.0,0.00303218]
[1762740453461,0.68692886,105670.0,105660.0,0.00303218]
[1762740453682,0.68740104,105670.0,105660.0,0.00303218]
[1762740455233,0.66459104,105670.0,105660.0,0.00303218]
[1762740455448,0.64482104,105670.0,105660.0,0.00303218]
[1762740455666,0.65872293,105670.0,105660.0,0.00303218]
[1762740455870,0.65825075,105670.0,105660.0,0.00303218]
[1762740456070,0.65872293,105670.0,105660.0,0.19231857]
[1762740456281,0.65872293,105670.0,105660.0,0.00303218]
[1762740456458,0.65872293,105670.0,105660.0,0.19231857]
[1762740456870,0.018,105670.0,105660.0,0.60403566]
[1762740457081,0.018,105670.0,105660.0,0.60381944]
[1762740457286,0.018,105670.0,105660.0,0.65484171]
[1762740457501,0.018,105670.0,105660.0,0.97784171]
[1762740457987,0.25231671,105700.0,105690.0,0.18923266]
[1762740458185,0.29655469,105700.0,105690.0,0.18923266]
[1762740458334,0.31156469,105700.0,105690.0,0.18923266]
[1762740459008,0.01751766,105700.0,105690.0,0.53941273]
[1762740459199,0.01751766,105700.0,105690.0,0.47498773]
[1762740459200,0.03351766,105700.0,105690.0,0.47498773]
[1762740459415,0.23454241,105700.0,105690.0,0.002]
[1762740459618,0.30828469,105700.0,105690.0,0.002]
[1762740459834,0.36443875,105700.0,105690.0,0.002]
[1762740460675,0.31028469,105700.0,105690.0,0.002]
[1762740460844,0.28773469,105700.0,105690.0,0.002]
[1762740461660,0.28773469,105700.0,105690.0,0.19123266]
[1762740461862,0.03551766,105700.0,105690.0,0.47498773]
[1762740462254,0.018,105700.0,105690.0,0.47498773]
[1762740462455,0.018,105700.0,105690.0,0.57308946]
[1762740463033,0.018,105700.0,105690.0,0.47498773]
[1762740463420,0.018,105700.0,105690.0,0.47522285]
[1762740464093,0.18920045,105710.0,105700.0,0.18921475]
[1762740464326,0.19321475,105700.0,105690.0,0.47422285]
[1762740464540,0.19321475,105700.0,105690.0,0.00123512]
[1762740464746,0.21073847,105700.0,105690.0,0.00123512]
[1762740464949,0.20773847,105700.0,105690.0,0.00023512]
[1762740465174,0.01852372,105700.0,105690.0,0.18946778]
[1762740465396,0.001,105700.0,105690.0,0.25907764]
[1762740465619,0.001,105700.0,105690.0,0.54262992]
[1762740466459,0.001,105700.0,105690.0,0.25887485]
[1762740467102,0.004,105700.0,105690.0,0.1905592]
[1762740467318,0.004,105700.0,105690.0,0.19076199]
[1762740471585,0.004,105700.0,105690.0,0.60864282]
[1762740471794,0.004,105700.0,105690.0,0.60844003]
[1762740473138,0.003,105700.0,105690.0,0.60844003]
[1762740473352,0.00086753,105720.0,105710.0,0.18919685]
[1762740473555,0.00086753,105720.0,105710.0,0.18939069]
[1762740473973,0.00086753,105720.0,105710.0,0.18919685]
[1762740474188,0.19004649,105720.0,105710.0,0.18919685]
[1762740474630,0.21469386,105720.0,105710.0,0.019]
[1762740474836,0.20307649,105720.0,105710.0,0.019]
[1762740475044,0.29757003,105720.0,105710.0,0.019]
[1762740476083,0.33985003,105720.0,105710.0,0.019]
[1762740477373,0.03618228,105710.0,105700.0,0.18921458]
[1762740477775,0.22537913,105710.0,105700.0,0.18921458]
[1762740477954,0.18921475,105700.0,105690.0,0.00032654]
[1762740478539,0.18921475,105700.0,105690.0,0.1895592]
[1762740478733,0.18921475,105700.0,105690.0,0.00032654]
[1762740479208,0.18921475,105700.0,105690.0,0.1895592]
[1762740480220,0.18921475,105700.0,105690.0,0.00932654]
[1762740480424,0.19121475,105700.0,105690.0,0.02232654]
[1762740481043,0.21954475,105700.0,105690.0,0.02232654]
[1762740481248,0.64598926,105700.0,105690.0,0.02232654]
[1762740481448,0.62147926,105700.0,105690.0,0.02232654]
[1762740482056,0.64598926,105700.0,105690.0,0.02232654]
[1762740482274,0.6459893,105700.0,105690.0,0.01332654]
[1762740482683,0.6479893,105700.0,105690.0,0.01332654]
[1762740483097,0.64749321,105700.0,105690.0,0.01332654]
[1762740483358,0.64749321,105700.0,105690.0,0.00032654]
[1762740483359,0.64548795,105700.0,105690.0,0.00032654]
[1762740483571,0.66149321,105700.0,105690.0,0.00232654]
[1762740484186,0.66148795,105700.0,105690.0,0.00232654]
[1762740484398,0.67901584,105700.0,105690.0,0.00232654]
[1762740484818,1.09642975,105700.0,105690.0,0.00232654]
[1762740485254,1.09690193,105700.0,105690.0,0.00232654]
[1762740485479,0.6790211,105700.0,105690.0,0.00232654]
[1762740485686,0.67854892,105700.0,105690.0,0.00232654]
[1762740486116,0.67902115,105700.0,105690.0,0.00232654]
[1762740486318,0.67854892,105700.0,105690.0,0.00232654]
[1762740486529,1.09642975,105700.0,105690.0,0.00232654]
[1762740486959,1.09690216,105700.0,105690.0,0.00232654]
[1762740487163,1.08090216,105700.0,105690.0,0.00032654]
[1762740487606,1.09890216,105700.0,105690.0,0.00232654]
[1762740488471,1.09690216,105700.0,105690.0,0.00232654]
[1762740488849,1.10590216,105700.0,105690.0,0.00232654]
[1762740489057,0.99047132,105700.0,105690.0,0.00232654]
[1762740490649,0.94771891,105700.0,105690.0,0.00232654]
[1762740490867,0.99043114,105700.0,105690.0,0.00232654]
[1762740491782,0.98995891,105700.0,105690.0,0.00232654]
[1762740491988,0.99043132,105700.0,105690.0,0.00232654]
[1762740492193,0.51225056,105680.0,105660.0,0.08491525]
[1762740492405,0.51225056,105680.0,105660.0,0.00048286]
[1762740492406,0.3076493,105670.0,105660.0,0.00048286]
[1762740492581,0.32602579,105670.0,105660.0,0.00048286]
[1762740492816,0.32602579,105670.0,105660.0,0.00118846]
[1762740493433,0.32602579,105670.0,105660.0,0.01018846]
[1762740493981,0.32602579,105670.0,105660.0,0.00518846]
[1762740494220,0.32802579,105670.0,105660.0,0.01818846]
[1762740495030,0.32802579,105670.0,105660.0,0.01418846]
[1762740495248,0.30351579,105670.0,105660.0,0.20347485]
[1762740495449,0.30950075,105670.0,105660.0,0.20447485]
[1762740495610,0.30850075,105670.0,105660.0,0.19047485]
[1762740495815,0.31250075,105670.0,105660.0,0.19047485]
[1762740496024,0.29099075,105670.0,105660.0,0.19047485]
[1762740496238,0.007,105670.0,105660.0,0.19047485]
[1762740496570,0.007,105670.0,105660.0,0.25189922]
[1762740496771,0.007,105670.0,105660.0,0.55413299]
[1762740496932,0.007,105670.0,105660.0,0.251683]
[1762740497343,0.19626847,105670.0,105660.0,0.251683]
[1762740497551,0.007,105670.0,105660.0,0.251683]
[1762740498782,0.007,105670.0,105660.0,0.55413299]
[1762740499571,0.003,105670.0,105660.0,0.55413299]
[1762740499998,0.005,105670.0,105660.0,0.55413299]
[1762740501098,0.002,105670.0,105660.0,0.55413299]
[1762740501525,0.003,105670.0,105660.0,0.56013299]
[1762740502097,0.003,105670.0,105660.0,0.6385133]
[1762740502305,0.003,105670.0,105660.0,0.33606331]
[1762740502306,0.19226847,105670.0,105660.0,0.33606331]
[1762740502667,0.19226847,105670.0,105660.0,0.3708466]
[1762740502807,0.19226847,105670.0,105660.0,0.19647485]
[1762740503009,0.003,105670.0,105660.0,0.257683]
[1762740503208,0.19226847,105670.0,105660.0,0.257683]
[1762740503560,0.003,105670.0,105660.0,0.257683]
[1762740505265,0.003,105670.0,105660.0,0.34736402]
[1762740505482,0.003,105670.0,105660.0,0.64981401]
[1762740509991,0.003,105670.0,105660.0,0.97281401]
[1762740510397,0.20256671,105710.0,105700.0,0.18921475]
[1762740510606,0.03042727,105710.0,105700.0,0.22705816]
[1762740510818,0.01839727,105710.0,105700.0,0.22705816]
[1762740511241,0.01839727,105710.0,105700.0,0.18921475]
[1762740511435,0.01854207,105710.0,105700.0,0.18941306]
[1762740511638,0.21073892,105710.0,105700.0,0.18941306]
[1762740512039,0.21073892,105710.0,105700.0,0.19041306]
[1762740512238,0.03254207,105710.0,105700.0,0.19041306]
[1762740512642,0.22173892,105710.0,105700.0,0.2586213]
[1762740512848,0.22173892,105710.0,105700.0,0.25842299]
[1762740514118,0.03254207,105710.0,105700.0,0.25842299]
[1762740514319,0.22173892,105710.0,105700.0,0.25842299]
[1762740514569,0.22173892,105710.0,105700.0,0.19021475]
[1762740514733,0.22173892,105710.0,105700.0,0.19041306]
[1762740514939,0.03254207,105710.0,105700.0,0.19041306]
[1762740515155,0.03254207,105710.0,105700.0,0.25162121]
[1762740515359,0.22173892,105710.0,105700.0,0.2514229]
[1762740517137,0.03254207,105710.0,105700.0,0.2514229]
[1762740517350,0.03254207,105710.0,105700.0,0.29466041]
[1762740518170,0.03254207,105710.0,105700.0,0.5971104]
[1762740518961,0.03254207,105710.0,105700.0,0.61371562]
[1762740519716,0.03254207,105710.0,105700.0,0.57047811]
[1762740521168,0.02154207,105710.0,105700.0,0.56947811]
[1762740521375,0.21273892,105710.0,105700.0,0.57547811]
[1762740521583,0.20973892,105710.0,105700.0,0.57547811]
[1762740522192,0.02054207,105710.0,105700.0,0.57947811]
[1762740522395,0.02054207,105710.0,105700.0,0.61683673]
[1762740523163,0.20973892,105710.0,105700.0,0.57947811]
[1762740523959,0.02054207,105710.0,105700.0,0.57947811]
[1762740526504,0.01854207,105710.0,105700.0,0.56947811]
[1762740526719,0.02054207,105710.0,105700.0,0.58247811]
[1762740526911,0.02154207,105710.0,105700.0,0.59447811]
[1762740527073,0.02154207,105710.0,105700.0,0.69257984]
[1762740530329,0.00401243,105710.0,105700.0,0.69257984]
[1762740530540,0.00401243,105710.0,105700.0,0.37352463]
[1762740530748,0.00401243,105710.0,105700.0,0.69257984]
[1762740531188,0.00101243,105710.0,105700.0,0.66757984]
[1762740531606,0.00201243,105710.0,105700.0,0.68057984]
[1762740532432,0.00401243,105710.0,105700.0,0.69457984]
[1762740533018,0.00401243,105710.0,105700.0,1.01757984]
[1762740533810,0.00401243,105710.0,105700.0,1.04306258]
[1762740534574,0.00401243,105710.0,105700.0,1.39609038]
[1762740534780,0.21486441,105760.0,105740.0,0.50819839]
[1762740535006,0.02636385,105760.0,105750.0,0.56938865]
[1762740535822,0.02636385,105760.0,105750.0,0.88844386]
[1762740536428,0.017592,105760.0,105750.0,0.56938865]
[1762740536629,0.020592,105760.0,105750.0,0.88944386]
[1762740536794,0.020592,105760.0,105750.0,0.62540932]
[1762740536996,0.020592,105760.0,105750.0,0.60819011]
[1762740538634,0.017592,105760.0,105750.0,0.60719011]
[1762740538837,0.018592,105760.0,105750.0,0.61419011]
[1762740539205,0.018592,105760.0,105750.0,0.61619011]
[1762740540511,0.01858061,105760.0,105750.0,0.61619011]
[1762740541135,0.0197553,105760.0,105750.0,0.61619011]
[1762740541347,0.20886271,105760.0,105750.0,0.31435411]
[1762740541560,0.0197553,105760.0,105750.0,0.31435411]
[1762740541801,0.20886271,105760.0,105750.0,0.009]
[1762740542014,0.26893506,105760.0,105750.0,0.009]
[1762740542249,0.30446892,105760.0,105750.0,0.009]
[1762740542453,0.97146492,105760.0,105750.0,0.009]
[1762740542658,0.66962892,105760.0,105750.0,0.009]
[1762740543281,0.66862892,105760.0,105750.0,0.002]
[1762740543487,0.18916029,105740.0,105720.0,0.25984443]
[1762740543691,0.18916107,105730.0,105720.0,0.32718212]
[1762740543896,0.18963108,105730.0,105720.0,0.32718212]
[1762740544107,0.00047001,105730.0,105720.0,0.32718212]
[1762740544309,0.00047001,105730.0,105720.0,0.62901812]
[1762740544511,0.00047001,105730.0,105720.0,0.95201812]
[1762740545561,0.001,105740.0,105730.0,0.18916107]
[1762740545774,0.001,105740.0,105730.0,0.5890988]
[1762740545987,4.83e-05,105760.0,105750.0,0.18912529]
[1762740546190,0.01757293,105760.0,105750.0,0.55216944]
[1762740546403,0.01757293,105760.0,105750.0,0.59171034]
[1762740547058,0.21543959,105760.0,105750.0,0.0395409]
[1762740547258,0.21543959,105760.0,105740.0,0.25033523]
[1762740547467,0.21543959,105760.0,105750.0,0.18912529]
[1762740547679,0.02633218,105760.0,105750.0,0.18912529]
[1762740547895,0.21543959,105760.0,105750.0,0.18912529]
[1762740548114,0.02633218,105760.0,105750.0,0.18912529]
[1762740548326,0.02633218,105760.0,105750.0,0.22326403]
[1762740548744,0.04633218,105760.0,105750.0,0.22526403]
[1762740548973,0.0200483,105760.0,105750.0,0.28471951]
[1762740549210,0.0200483,105760.0,105750.0,0.25923662]
[1762740549394,0.20915571,105760.0,105750.0,0.25053665]
[1762740549632,0.20915571,105760.0,105750.0,0.21656406]
[1762740550067,4.83e-05,105760.0,105750.0,0.21456406]
[1762740550272,0.0060483,105760.0,105750.0,0.21556406]
[1762740551113,0.19515571,105760.0,105750.0,0.21556406]
[1762740551769,0.00675304,105760.0,105750.0,0.21556406]
[1762740552458,0.00675304,105760.0,105750.0,0.66701298]
[1762740552692,0.00675304,105760.0,105750.0,0.24953665]
[1762740554372,0.00675304,105760.0,105750.0,0.66701298]